Workbook

Sheet Данные для прогноза
B2: HLP Manufacturing INC
B3: Прогноз продаж
B4: Конфиденциально
B6: Имя возможного клиента | C6: Продажи агент | D6: Продажи регион | E6: Продажи Категория | F6: Прогнозируемая сумма | G6: Продажи этап | H6: Вероятность продажи | I6: Прогноз закрытие | J6: Взвешенный прогноз
B7: Adatum Corporation | C7: Роуэн Мерфи | D7: Северо-восток США | E7: Консультирование | F7: 150,000 ₽ | G7: Формальное утверждение | H7: 90% | I7: =DATE(YEAR(TODAY())+1,1,1) -> 2025-01-01 | J7: =Таблица_ДанныеДляПрогноза[[#This Row],[Прогнозируемая сумма]]*Таблица_ДанныеДляПрогноза[[#This Row],[Вероятность продажи]] -> 135,000 ₽
B8: Adventure Works | C8: Михо Кодзима | D8: Юго-восток США | E8: Продукты | F8: 145,200 ₽ | G8: Возможность | H8: 10% | I8: =DATE(YEAR(TODAY())+1,2,1) -> 2025-02-01 | J8: =Таблица_ДанныеДляПрогноза[[#This Row],[Прогнозируемая сумма]]*Таблица_ДанныеДляПрогноза[[#This Row],[Вероятность продажи]] -> 14,520 ₽
B9: Alpine Ski House | C9: Кора Томас | D9: Центр США на севере | E9: Обучение | F9: 162,500 ₽ | G9: Выявлена потребность | H9: 20% | I9: =DATE(YEAR(TODAY())+1,3,1) -> 2025-03-01 | J9: =Таблица_ДанныеДляПрогноза[[#This Row],[Прогнозируемая сумма]]*Таблица_ДанныеДляПрогноза[[#This Row],[Вероятность продажи]] -> 32,500 ₽
B10: Baldwin Museum of Science | C10: Эллис Тернер | D10: Центр США на юге | E10: Сочетание | F10: 147,500 ₽ | G10: Спонсорство | H10: 30% | I10: =DATE(YEAR(TODAY())+1,4,1) -> 2025-04-01 | J10: =Таблица_ДанныеДляПрогноза[[#This Row],[Прогнозируемая сумма]]*Таблица_ДанныеДляПрогноза[[#This Row],[Вероятность продажи]] -> 44,250 ₽
B11: Blue Yonder Airlines | C11: Сума Кини | D11: Северо-запад США | E11: Проф. услуги | F11: 148,000 ₽ | G11: Бюджет подтвержден | H11: 40% | I11: =DATE(YEAR(TODAY())+1,5,1) -> 2025-05-01 | J11: =Таблица_ДанныеДляПрогноза[[#This Row],[Прогнозируемая сумма]]*Таблица_ДанныеДляПрогноза[[#This Row],[Вероятность продажи]] -> 59,200 ₽
B12: City Power & Light | C12: Роуэн Мерфи | D12: Юго-запад США | E12: Поддержка | F12: 175,000 ₽ | G12: Анализ потребностей | H12: 50% | I12: =DATE(YEAR(TODAY())+1,6,1) -> 2025-06-01 | J12: =Таблица_ДанныеДляПрогноза[[#This Row],[Прогнозируемая сумма]]*Таблица_ДанныеДляПрогноза[[#This Row],[Вероятность продажи]] -> 87,500 ₽
B13: Coho Vineyard | C13: Кора Томас | D13: Восток Канады | E13: Сочетание | F13: 149,000 ₽ | G13: Предложено решение | H13: 60% | I13: =DATE(YEAR(TODAY())+1,7,1) -> 2025-07-01 | J13: =Таблица_ДанныеДляПрогноза[[#This Row],[Прогнозируемая сумма]]*Таблица_ДанныеДляПрогноза[[#This Row],[Вероятность продажи]] -> 89,400 ₽
B14: Coho Winery | C14: Сума Кини | D14: Запад Канады | E14: Обучение | F14: 142,000 ₽ | G14: Письменное предложение | H14: 70% | I14: =DATE(YEAR(TODAY())+1,8,1) -> 2025-08-01 | J14: =Таблица_ДанныеДляПрогноза[[#This Row],[Прогнозируемая сумма]]*Таблица_ДанныеДляПрогноза[[#This Row],[Вероятность продажи]] -> 99,400 ₽
B15: Contoso, Ltd. | C15: Кора Томас | D15: ЕБВА — Франция | E15: Сочетание | F15: 172,500 ₽ | G15: Устное утверждение | H15: 90% | I15: =DATE(YEAR(TODAY())+1,10,1) -> 2025-10-01 | J15: =Таблица_ДанныеДляПрогноза[[#This Row],[Прогнозируемая сумма]]*Таблица_ДанныеДляПрогноза[[#This Row],[Вероятность продажи]] -> 155,250 ₽
B16: Contoso Pharmaceuticals | C16: Эллис Тернер | D16: ЕБВА — Германия | E16: Продукты | F16: 163,500 ₽ | G16: Спонсорство | H16: 20% | I16: =DATE(YEAR(TODAY())+1,11,1) -> 2025-11-01 | J16: =Таблица_ДанныеДляПрогноза[[#This Row],[Прогнозируемая сумма]]*Таблица_ДанныеДляПрогноза[[#This Row],[Вероятность продажи]] -> 32,700 ₽
B17: Consolidated Messenger | C17: Сума Кини | D17: ЕБВА — Италия | E17: Продукты | F17: 155,500 ₽ | G17: Формальное утверждение | H17: 100% | I17: =DATE(YEAR(TODAY())+1,12,1) -> 2025-12-01 | J17: =Таблица_ДанныеДляПрогноза[[#This Row],[Прогнозируемая сумма]]*Таблица_ДанныеДляПрогноза[[#This Row],[Вероятность продажи]] -> 155,500 ₽
B18: Fabrikam, Inc. | C18: Эллис Тернер | D18: ЕБВА — другие | E18: Консультирование | F18: 166,000 ₽ | G18: Возможность | H18: 10% | I18: =DATE(YEAR(TODAY())+1,1,1) -> 2025-01-01 | J18: =Таблица_ДанныеДляПрогноза[[#This Row],[Прогнозируемая сумма]]*Таблица_ДанныеДляПрогноза[[#This Row],[Вероятность продажи]] -> 16,600 ₽
B19: Fourth Coffee | C19: Кора Томас | D19: APSA — Азия | E19: Обучение | F19: 180,000 ₽ | G19: Бюджет подтвержден | H19: 30% | I19: =DATE(YEAR(TODAY())+1,3,1) -> 2025-03-01 | J19: =Таблица_ДанныеДляПрогноза[[#This Row],[Прогнозируемая сумма]]*Таблица_ДанныеДляПрогноза[[#This Row],[Вероятность продажи]] -> 54,000 ₽
B20: Институт графического дизайна | C20: Михо Кодзима | D20: APSA — Тихоокеанский регион | E20: Услуги | F20: 140,000 ₽ | G20: Предложено решение | H20: 60% | I20: =DATE(YEAR(TODAY())+1,5,1) -> 2025-05-01 | J20: =Таблица_ДанныеДляПрогноза[[#This Row],[Прогнозируемая сумма]]*Таблица_ДанныеДляПрогноза[[#This Row],[Вероятность продажи]] -> 84,000 ₽
B21: Humongous Insurance | C21: Роуэн Мерфи | D21: APSA — Мексика | E21: Поддержка | F21: 155,000 ₽ | G21: Спонсорство | H21: 30% | I21: =DATE(YEAR(TODAY())+1,6,1) -> 2025-06-01 | J21: =Таблица_ДанныеДляПрогноза[[#This Row],[Прогнозируемая сумма]]*Таблица_ДанныеДляПрогноза[[#This Row],[Вероятность продажи]] -> 46,500 ₽
B22: Litware, Inc. | C22: Михо Кодзима | D22: APSA — Австралия | E22: Проф. услуги | F22: 173,200 ₽ | G22: Анализ потребностей | H22: 50% | I22: =DATE(YEAR(TODAY())+1,10,1) -> 2025-10-01 | J22: =Таблица_ДанныеДляПрогноза[[#This Row],[Прогнозируемая сумма]]*Таблица_ДанныеДляПрогноза[[#This Row],[Вероятность продажи]] -> 86,600 ₽
B23: Lucerne Publishing | C23: Сума Кини | D23: APSA — другие | E23: Услуги | F23: 146,500 ₽ | G23: Предложено решение | H23: 60% | I23: =DATE(YEAR(TODAY())+1,12,1) -> 2025-12-01 | J23: =Таблица_ДанныеДляПрогноза[[#This Row],[Прогнозируемая сумма]]*Таблица_ДанныеДляПрогноза[[#This Row],[Вероятность продажи]] -> 87,900 ₽
B24: Margie's Travel | C24: Эллис Тернер | D24: Северо-восток США | E24: Поддержка | F24: 156,750 ₽ | G24: Письменное предложение | H24: 70% | I24: =DATE(YEAR(TODAY())+1,11,1) -> 2025-11-01 | J24: =Таблица_ДанныеДляПрогноза[[#This Row],[Прогнозируемая сумма]]*Таблица_ДанныеДляПрогноза[[#This Row],[Вероятность продажи]] -> 109,725 ₽
B25: Northwind Traders | C25: Кора Томас | D25: Центр США на юге | E25: Проф. услуги | F25: 162,000 ₽ | G25: Устное утверждение | H25: 90% | I25: =DATE(YEAR(TODAY())+1,2,1) -> 2025-02-01 | J25: =Таблица_ДанныеДляПрогноза[[#This Row],[Прогнозируемая сумма]]*Таблица_ДанныеДляПрогноза[[#This Row],[Вероятность продажи]] -> 145,800 ₽
B26: Proseware, Inc. | C26: Эллис Тернер | D26: Восток Канады | E26: Сочетание | F26: 157,000 ₽ | G26: Формальное утверждение | H26: 100% | I26: =DATE(YEAR(TODAY())+1,3,1) -> 2025-03-01 | J26: =Таблица_ДанныеДляПрогноза[[#This Row],[Прогнозируемая сумма]]*Таблица_ДанныеДляПрогноза[[#This Row],[Вероятность продажи]] -> 157,000 ₽
B27: Художественная школа | C27: Михо Кодзима | D27: ЕБВА — Франция | E27: Услуги | F27: 173,000 ₽ | G27: Бюджет подтвержден | H27: 40% | I27: =DATE(YEAR(TODAY())+1,4,1) -> 2025-04-01 | J27: =Таблица_ДанныеДляПрогноза[[#This Row],[Прогнозируемая сумма]]*Таблица_ДанныеДляПрогноза[[#This Row],[Вероятность продажи]] -> 69,200 ₽
B28: Southridge Video | C28: Сума Кини | D28: ЕБВА — Соединенное Королевство | E28: Сочетание | F28: 171,000 ₽ | G28: Анализ потребностей | H28: 50% | I28: =DATE(YEAR(TODAY())+1,8,1) -> 2025-08-01 | J28: =Таблица_ДанныеДляПрогноза[[#This Row],[Прогнозируемая сумма]]*Таблица_ДанныеДляПрогноза[[#This Row],[Вероятность продажи]] -> 85,500 ₽
B29: Tailspin Toys | C29: Роуэн Мерфи | D29: APSA — Австралия | E29: Продукты | F29: 168,000 ₽ | G29: Предложено решение | H29: 60% | I29: =DATE(YEAR(TODAY())+1,9,1) -> 2025-09-01 | J29: =Таблица_ДанныеДляПрогноза[[#This Row],[Прогнозируемая сумма]]*Таблица_ДанныеДляПрогноза[[#This Row],[Вероятность продажи]] -> 100,800 ₽

Sheet Прогноз продаж
B2: =НазваниеКомпании -> HLP Manufacturing INC
B3: Диаграмма прогноза
B4: Конфиденциально
B5: Начальный месяц | C5: =DATE(YEAR(TODAY())+1,1,1) -> 2025-01-01
B6: Месяц | C6: Ежемесячный прогноз | D6: Накопленное значение | P6: =B6 -> Месяц | Q6: Месячный прогноз | R6: Накопленное значение
B7: =DATE(YEAR(Месяц_начала),MONTH(Месяц_начала)+0,1) -> 2025-01-01 | C7: =SUMIFS(Таблица_ДанныеДляПрогноза[Взвешенный прогноз],Таблица_ДанныеДляПрогноза[Прогноз закрытие],">="&'Прогноз продаж'!B7,Таблица_ДанныеДляПрогноза[Прогноз закрытие],"<="&DATE(YEAR('Прогноз продаж'!B7),MONTH('Прогноз продаж'!B7)+1,0)) -> 151,600 ₽ | D7: =IF(ISNUMBER(D6),D6+C7,C7) -> 151,600 ₽ | P7: =B7 -> 2025-01-01 | Q7: =C7 -> 151,600 ₽ | R7: =D7-C7 -> 0
B8: =DATE(YEAR(Месяц_начала),MONTH(Месяц_начала)+1,1) -> 2025-02-01 | C8: =SUMIFS(Таблица_ДанныеДляПрогноза[Взвешенный прогноз],Таблица_ДанныеДляПрогноза[Прогноз закрытие],">="&'Прогноз продаж'!B8,Таблица_ДанныеДляПрогноза[Прогноз закрытие],"<="&DATE(YEAR('Прогноз продаж'!B8),MONTH('Прогноз продаж'!B8)+1,0)) -> 160,320 ₽ | D8: 311,920 ₽ | P8: 2025-02-01 | Q8: =C8 -> 160,320 ₽ | R8: =D8-C8 -> 151,600 ₽
B9: =DATE(YEAR(Месяц_начала),MONTH(Месяц_начала)+2,1) -> 2025-03-01 | C9: =SUMIFS(Таблица_ДанныеДляПрогноза[Взвешенный прогноз],Таблица_ДанныеДляПрогноза[Прогноз закрытие],">="&'Прогноз продаж'!B9,Таблица_ДанныеДляПрогноза[Прогноз закрытие],"<="&DATE(YEAR('Прогноз продаж'!B9),MONTH('Прогноз продаж'!B9)+1,0)) -> 243,500 ₽ | D9: 555,420 ₽ | P9: 2025-03-01 | Q9: 243,500 ₽ | R9: 311,920 ₽
B10: =DATE(YEAR(Месяц_начала),MONTH(Месяц_начала)+3,1) -> 2025-04-01 | C10: =SUMIFS(Таблица_ДанныеДляПрогноза[Взвешенный прогноз],Таблица_ДанныеДляПрогноза[Прогноз закрытие],">="&'Прогноз продаж'!B10,Таблица_ДанныеДляПрогноза[Прогноз закрытие],"<="&DATE(YEAR('Прогноз продаж'!B10),MONTH('Прогноз продаж'!B10)+1,0)) -> 113,450 ₽ | D10: 668,870 ₽ | P10: 2025-04-01 | Q10: 113,450 ₽ | R10: 555,420 ₽
B11: =DATE(YEAR(Месяц_начала),MONTH(Месяц_начала)+4,1) -> 2025-05-01 | C11: =SUMIFS(Таблица_ДанныеДляПрогноза[Взвешенный прогноз],Таблица_ДанныеДляПрогноза[Прогноз закрытие],">="&'Прогноз продаж'!B11,Таблица_ДанныеДляПрогноза[Прогноз закрытие],"<="&DATE(YEAR('Прогноз продаж'!B11),MONTH('Прогноз продаж'!B11)+1,0)) -> 143,200 ₽ | D11: 812,070 ₽ | P11: 2025-05-01 | Q11: 143,200 ₽ | R11: 668,870 ₽
B12: =DATE(YEAR(Месяц_начала),MONTH(Месяц_начала)+5,1) -> 2025-06-01 | C12: =SUMIFS(Таблица_ДанныеДляПрогноза[Взвешенный прогноз],Таблица_ДанныеДляПрогноза[Прогноз закрытие],">="&'Прогноз продаж'!B12,Таблица_ДанныеДляПрогноза[Прогноз закрытие],"<="&DATE(YEAR('Прогноз продаж'!B12),MONTH('Прогноз продаж'!B12)+1,0)) -> 134,000 ₽ | D12: 946,070 ₽ | P12: 2025-06-01 | Q12: 134,000 ₽ | R12: 812,070 ₽
B13: =DATE(YEAR(Месяц_начала),MONTH(Месяц_начала)+6,1) -> 2025-07-01 | C13: =SUMIFS(Таблица_ДанныеДляПрогноза[Взвешенный прогноз],Таблица_ДанныеДляПрогноза[Прогноз закрытие],">="&'Прогноз продаж'!B13,Таблица_ДанныеДляПрогноза[Прогноз закрытие],"<="&DATE(YEAR('Прогноз продаж'!B13),MONTH('Прогноз продаж'!B13)+1,0)) -> 89,400 ₽ | D13: 1,035,470 ₽ | P13: 2025-07-01 | Q13: 89,400 ₽ | R13: 946,070 ₽
B14: =DATE(YEAR(Месяц_начала),MONTH(Месяц_начала)+7,1) -> 2025-08-01 | C14: =SUMIFS(Таблица_ДанныеДляПрогноза[Взвешенный прогноз],Таблица_ДанныеДляПрогноза[Прогноз закрытие],">="&'Прогноз продаж'!B14,Таблица_ДанныеДляПрогноза[Прогноз закрытие],"<="&DATE(YEAR('Прогноз продаж'!B14),MONTH('Прогноз продаж'!B14)+1,0)) -> 184,900 ₽ | D14: 1,220,370 ₽ | P14: 2025-08-01 | Q14: 184,900 ₽ | R14: 1,035,470 ₽
B15: =DATE(YEAR(Месяц_начала),MONTH(Месяц_начала)+8,1) -> 2025-09-01 | C15: =SUMIFS(Таблица_ДанныеДляПрогноза[Взвешенный прогноз],Таблица_ДанныеДляПрогноза[Прогноз закрытие],">="&'Прогноз продаж'!B15,Таблица_ДанныеДляПрогноза[Прогноз закрытие],"<="&DATE(YEAR('Прогноз продаж'!B15),MONTH('Прогноз продаж'!B15)+1,0)) -> 100,800 ₽ | D15: 1,321,170 ₽ | P15: 2025-09-01 | Q15: 100,800 ₽ | R15: 1,220,370 ₽
B16: =DATE(YEAR(Месяц_начала),MONTH(Месяц_начала)+9,1) -> 2025-10-01 | C16: =SUMIFS(Таблица_ДанныеДляПрогноза[Взвешенный прогноз],Таблица_ДанныеДляПрогноза[Прогноз закрытие],">="&'Прогноз продаж'!B16,Таблица_ДанныеДляПрогноза[Прогноз закрытие],"<="&DATE(YEAR('Прогноз продаж'!B16),MONTH('Прогноз продаж'!B16)+1,0)) -> 241,850 ₽ | D16: 1,563,020 ₽ | P16: 2025-10-01 | Q16: 241,850 ₽ | R16: 1,321,170 ₽
B17: =DATE(YEAR(Месяц_начала),MONTH(Месяц_начала)+10,1) -> 2025-11-01 | C17: =SUMIFS(Таблица_ДанныеДляПрогноза[Взвешенный прогноз],Таблица_ДанныеДляПрогноза[Прогноз закрытие],">="&'Прогноз продаж'!B17,Таблица_ДанныеДляПрогноза[Прогноз закрытие],"<="&DATE(YEAR('Прогноз продаж'!B17),MONTH('Прогноз продаж'!B17)+1,0)) -> 142,425 ₽ | D17: 1,705,445 ₽ | P17: 2025-11-01 | Q17: 142,425 ₽ | R17: 1,563,020 ₽
B18: =DATE(YEAR(Месяц_начала),MONTH(Месяц_начала)+11,1) -> 2025-12-01 | C18: =SUMIFS(Таблица_ДанныеДляПрогноза[Взвешенный прогноз],Таблица_ДанныеДляПрогноза[Прогноз закрытие],">="&'Прогноз продаж'!B18,Таблица_ДанныеДляПрогноза[Прогноз закрытие],"<="&DATE(YEAR('Прогноз продаж'!B18),MONTH('Прогноз продаж'!B18)+1,0)) -> 243,400 ₽ | D18: 1,948,845 ₽ | P18: 2025-12-01 | Q18: 243,400 ₽ | R18: 1,705,445 ₽

Sheet Списки
B2: =НазваниеКомпании -> HLP Manufacturing INC
B3: Списки продаж
B4: Конфиденциально
B6: Агенты продаж | C6: Регионы продаж | D6: Категории продаж | E6: Этапы продаж
B7: Роуэн Мерфи | C7: Северо-восток США | D7: Консультирование | E7: Выявлена потребность
B8: Михо Кодзима | C8: Юго-восток США | D8: Сочетание | E8: Возможность
B9: Кора Томас | C9: Центр США на севере | D9: Продукты | E9: Анализ потребностей
B10: Эллис Тернер | C10: Центр США на юге | D10: Проф. услуги | E10: Предложено решение
B11: Сума Кини | C11: Северо-запад США | D11: Услуги | E11: Письменное предложение
C12: Юго-запад США | D12: Поддержка | E12: Устное утверждение
C13: Восток Канады | D13: Обучение | E13: Формальное утверждение
C14: Запад Канады | E14: Бюджет подтвержден
C15: ЕБВА — Франция | E15: Спонсорство
C16: ЕБВА — Германия
C17: ЕБВА — Италия
C18: ЕБВА — другие
C19: APSA — Азия
C20: APSA — Тихоокеанский регион
C21: APSA — Мексика
C22: APSA — Австралия
C23: APSA — другие
C24: ЕБВА — Соединенное Королевство
